fUSD/lending_fUSD_20241030
["ID","MTS","AMOUNT","RATE_DAILY","PERIOD"]
[341022556,1730274649308,-587.46995446,0.00035899,5]
[341022557,1730274649318,-694.57,0.00035899,5]
[341022558,1730274649327,-527.14995517,0.00035899,5]
[341022559,1730274649336,-555.34947791,0.00035899,5]
[341022560,1730274649346,-500.0,0.00035899,5]
[341022561,1730274649356,-528.01358161,0.00035899,5]
[341022562,1730274649366,-527.90498626,0.00035899,5]
[341022563,1730274649375,-535.53133249,0.00035899,5]
[341022564,1730274649385,-500.0,0.00035899,5]
[341022565,1730274649395,-500.0,0.00035899,5]
[341022566,1730274649404,-531.72542421,0.00035899,5]
[341022567,1730274649413,-507.95,0.00035899,5]
[341022568,1730274649423,-522.01087302,0.00035899,5]
[341022569,1730274649432,-500.0,0.00035899,5]
[341022570,1730274649442,-678.27,0.00035899,5]
[341022571,1730274649452,-500.0,0.00035899,5]
[341022572,1730274649461,-500.0,0.00035899,5]
[341022573,1730274649471,-500.0,0.00035899,5]
[341022574,1730274649480,-500.0,0.00035899,5]
[341022575,1730274649490,-500.0,0.00035899,5]
[341022576,1730274649499,-151.0,0.00035899,7]
[341022577,1730274649510,-1502.53,0.00035899,5]
[341022578,1730274649519,-524.64763196,0.00035899,5]
[341022579,1730274649528,-2000.0,0.00035899,120]
[341022580,1730274649538,-151.0,0.00035899,7]
[341022581,1730274649547,-518.25014943,0.00035899,5]
[341022582,1730274649557,-500.0,0.00035899,5]
[341022583,1730274649566,-2251.78,0.00035899,5]
[341022584,1730274649577,-500.0,0.00035899,5]
[341022585,1730274649586,-500.0,0.00035899,5]
[341022586,1730274649596,-500.0,0.00035899,5]
[341022587,1730274649606,-500.0,0.00035899,5]
[341022588,1730274649616,-2351.12,0.00035899,5]
[341022589,1730274649625,-500.0,0.00035899,5]
[341022590,1730274649635,-500.0,0.00035899,5]
[341022591,1730274649644,-500.0,0.00035899,5]
[341022592,1730274649654,-504.80965229,0.00035899,5]
[341022593,1730274649663,-500.0,0.00035899,5]
[341022594,1730274649673,-2086.18,0.00035899,5]
[341022595,1730274649682,-693.73,0.00035899,5]
[341022596,1730274649692,-500.0,0.00035899,5]
[341022597,1730274649701,-500.0,0.00035899,5]
[341022598,1730274649711,-500.0,0.00035899,5]
[341022599,1730274649720,-272.06861125,0.00035899,5]
[341022600,1730274649833,-500.0,0.00035899,5]
[341022601,1730274649843,-1235.63,0.00035899,5]
[341022602,1730274649853,-1304.7,0.00035899,5]
[341022603,1730274649863,-500.0,0.00035899,5]
[341022604,1730274649873,-500.0,0.00035899,5]
[341022605,1730274649882,-782.5,0.00035899,5]
[341022606,1730274649895,-500.0,0.00035899,5]
[341022607,1730274649904,-500.0,0.00035899,5]
[341022608,1730274649914,-500.0,0.00035899,5]
[341022609,1730274649924,-500.0,0.00035899,5]
[341022610,1730274649934,-584.21,0.00035899,5]
[341022611,1730274649944,-261.092468,0.00035899,7]
[341022612,1730274649953,-555.9862663,0.00035899,5]
[341022613,1730274649962,-261.092468,0.00035899,7]
[341022614,1730274649972,-1829.21,0.00035899,5]
[341022615,1730274649985,-500.0,0.00035899,5]
[341022616,1730274649995,-580.643832,0.00035899,7]
[341022617,1730274650005,-983.99,0.00035899,5]
[341022618,1730274650015,-580.643832,0.00035899,7]
[341022619,1730274650026,-500.0,0.00035899,5]
[341022620,1730274650035,-500.0,0.00035899,5]
[341022621,1730274650047,-500.0,0.00035899,5]
[341022622,1730274650060,-500.0,0.00035899,5]
[341022623,1730274650071,-500.0,0.00035899,5]
[341022624,1730274650082,-634.24,0.00035899,5]
[341022625,1730274650093,-500.0,0.00035899,5]
[341022626,1730274650103,-500.0,0.00035899,5]
[341022627,1730274650114,-500.0,0.00035899,5]
[341022628,1730274650124,-500.0,0.00035899,5]
[341022629,1730274650134,-656.83,0.00035899,5]
[341022630,1730274650146,-151.0,0.00035899,7]
[341022631,1730274650156,-500.0,0.00035899,5]
[341022632,1730274650167,-156.252722,0.00035899,7]
[341022633,1730274650177,-500.0,0.00035899,5]
[341022634,1730274650188,-1152.9,0.00035899,5]
[341022635,1730274650198,-500.0,0.00035899,5]
[341022636,1730274650209,-500.0,0.00035899,5]
[341022637,1730274650218,-1773.02,0.00035899,5]
[341022638,1730274650228,-500.0,0.00035899,5]
[341022639,1730274650239,-500.0,0.00035899,5]
[341022640,1730274650250,-500.0,0.00035899,5]
[341022641,1730274650259,-1336.47,0.00035899,5]
[341022642,1730274650268,-500.0,0.00035899,5]
[341022643,1730274650278,-500.0,0.00035899,5]
[341022644,1730274650287,-981.54,0.00035899,15]
[341022645,1730274650297,-500.0,0.00035899,5]
[341022646,1730274650307,-500.0,0.00035899,5]
[341022647,1730274650316,-151.0,0.00035899,7]
[341022648,1730274650327,-526.86,0.00035899,5]
[341022649,1730274650338,-500.0,0.00035899,5]
[341022650,1730274650347,-500.0,0.00035899,5]
[341022651,1730274650356,-1058.82,0.00035899,5]
[341022652,1730274650365,-145874.805,0.000359,2]
[341022653,1730274650375,-987.357,0.000359,2]
[341022654,1730274650385,-167.6208,0.000359,2]
[341022655,1730274650394,-151.0,0.000359,7]
[341022656,1730274650403,-154.132163,0.000359,7]
[341022657,1730274650413,-152.958556,0.000359,7]
[341022658,1730274650423,-154.493855,0.000359,7]
[341022659,1730274650433,-151.0,0.000359,7]
[341022660,1730274650443,-155.853112,0.000359,7]
[341022661,1730274650453,-151.0,0.000359,7]
[341022662,1730274650464,-151.0,0.000359,7]
[341022663,1730274650474,-151.0,0.000359,7]
[341022664,1730274650483,-261.092468,0.000359,7]
[341022665,1730274650493,-261.092468,0.000359,7]
[341022666,1730274650503,-580.643832,0.000359,7]
[341022667,1730274650513,-580.643832,0.000359,7]
[341022668,1730274650522,-151.0,0.000359,7]
[341022669,1730274650532,-151.0,0.000359,7]
[341022670,1730274650541,-215.64288328,0.00035933,15]
[341022671,1730274650551,-303.48727245,0.00035973,5]
[341022672,1730274650559,-501.28049823,0.00035973,5]
[341022673,1730274650568,-500.0,0.00035973,5]
[341022674,1730274650578,-500.0,0.00035999,5]
[341022675,1730274650587,-500.0,0.00035999,5]
[341022676,1730274650596,-560.53870587,0.00035999,5]
[341022677,1730274650605,-556.31,0.00035999,5]
[341022678,1730274650614,-500.0,0.00035999,5]
[341022679,1730274650623,-500.0,0.00035999,5]
[341022680,1730274650633,-500.0,0.00035999,5]
[341022681,1730274650642,-536.81852922,0.00035999,5]
[341022682,1730274650651,-676.19,0.00035999,5]
[341022683,1730274650661,-380.9829249,0.00035999,5]
[341022684,1730274650673,-2086.18,0.00035999,5]
[341022685,1730274650685,-500.0,0.00035999,5]
[341022686,1730274650695,-70614.37360187,0.00036,120]
[341022687,1730274651126,-663.1829196,0.00036,120]
[341022688,1730274651138,-4238.50844269,0.00036,120]
[341022689,1730274651668,-500.0,0.00035616,5]
[341022690,1730274651678,-500.0,0.00035616,5]
[341022691,1730274651687,-400.0,0.000357,13]
[341022692,1730274651696,-500.0,0.0003589,5]
[341022693,1730274651705,-228.72,0.0003589,5]
[341022694,1730274651715,-941.91,0.00035899,5]
[341022695,1730274651723,-544.37,0.00036,120]
[341022696,1730274651735,-72159.99999999,0.00036,120]
[341022697,1730274651746,-3923.28037058,0.00036,120]
[341022698,1730274651780,-634.49256024,0.00036,120]
[341022702,1730274916875,177.29,0.00019178,2]
[341022703,1730275129724,157.98,0.00015342,2]
[341022706,1730275562111,549.70026911,0.00015,2]
[341022707,1730275562134,0.29973089,0.00015,2]
[341022708,1730275563210,600.0,0.00017,2]
[341022710,1730275652125,-360.481786,0.000239,2]
[341022711,1730275652144,-1429.97140281,0.00024,2]
[341022712,1730275681573,300.0,0.00019725,2]
[341022713,1730275688727,150.0,0.00017605,2]
[341022714,1730275755081,-6553.816829,0.00024,2]
[341022715,1730275755101,-177.06,0.00026576,2]
[341022716,1730275755123,-200.0,0.0002795,2]
[341022717,1730275785306,500.0,0.00028,120]
[341022718,1730275809705,500.0,0.00029,120]
[341022720,1730275825221,500.0,0.000294,120]
[341022723,1730275831856,-3213.85317162,0.000299,5]
[341022724,1730275831868,-2825.69596311,0.000299,5]
[341022725,1730275831877,-168.29175,0.0003,2]
[341022726,1730275831887,-1019.59003146,0.0003,120]
[341022727,1730275831896,-500.0,0.0003,120]
[341022728,1730275831906,-887.83,0.00031316,2]
[341022729,1730275831916,-500.0,0.00032,120]
[341022730,1730275831929,-8528.79290107,0.00032831,2]
[341022731,1730275831938,-150.0,0.00032831,2]
[341022732,1730275831947,-9525.5,0.00032832,2]
[341022733,1730275831956,-999.99,0.00032832,2]
[341022734,1730275831964,-2337.3687,0.00032832,2]
[341022735,1730275831974,-250.0,0.00033051,2]
[341022736,1730275831984,-801.01,0.00033051,2]
[341022737,1730275831993,-745.61,0.00033145,2]
[341022738,1730275832002,-170.86,0.0003315,2]
[341022739,1730275832011,-1000.0,0.00033158,2]
[341022740,1730275832021,-777.33,0.00033171,120]
[341022741,1730275832030,-168.71,0.00033171,2]
[341022742,1730275832040,-351.26,0.00033179,2]
[341022743,1730275832049,-150.0,0.0003319,2]
[341022744,1730275832059,-16413.7368277,0.00033195,2]
[341022745,1730275832079,-2691.66555381,0.00033195,2]
[341022746,1730275832123,-21531.91761849,0.00033195,2]
[341022747,1730275832133,-250.0,0.00033204,2]
[341022748,1730275832142,-14590.33052088,0.00033205,2]
[341022767,1730275838095,-500.0,0.000298,120]
[341022768,1730275838104,-294.66488524,0.00033205,2]
[341022936,1730275839939,-4842.93172486,0.00033205,2]
[341022942,1730275839991,-979.7410366,0.00033205,2]
[341022959,1730275840149,-3192.33183242,0.00033205,2]
[341022961,1730275840159,-250.0,0.00033426,120]
[341022963,1730275840169,-200.0,0.00033429,2]
[341022964,1730275840180,-887.83,0.0003358,2]
[341022966,1730275840189,-150.0,0.00033644,7]
[341022968,1730275840199,-160.555566,0.0003375,3]
[341022970,1730275840208,-500.0,0.00034,120]
[341022972,1730275840217,-66474.0,0.00034212,2]
[341022974,1730275840229,-9284.706,0.00034228,2]
[341022977,1730275840240,-175.17,0.00034413,120]
[341022979,1730275840250,-254.94,0.00034413,120]
[341022981,1730275840259,-1497.47555631,0.00034476,15]
[341022983,1730275840268,-164.58,0.00034477,2]
[341022984,1730275840277,-192.48,0.00034576,2]
[341022987,1730275840286,-1497.47555627,0.00034801,15]
[341022988,1730275840295,-351.26,0.00034838,2]
[341022990,1730275840305,-185.56,0.00034971,2]
[341022992,1730275840314,-1497.47555627,0.00035126,15]
[341022994,1730275840323,-3002.0,0.00035322,2]
[341022995,1730275840333,-448.99,0.00035342,2]
[341022996,1730275840343,-157.99679306,0.00035416,2]
[341022997,1730275840352,-1497.47555627,0.00035451,15]
[341022998,1730275840362,-395.3292658,0.00035487,2]
[341022999,1730275840372,-179.0,0.00035497,2]
[341023000,1730275840381,-38763.06317387,0.00035497,7]
[341023008,1730275840493,-1197.00877947,0.00035497,7]
[341023271,1730275842932,-2170.38,0.00035497,7]
[341023291,1730275843208,-165.27919201,0.00035497,7]
[341023303,1730275843303,-27750.20783176,0.00035497,7]
[341023304,1730275843312,-215.0926,0.00035516,2]
[341023306,1730275843322,-1699.9575,0.00035516,2]
[341023308,1730275843331,-62581.5845,0.00035516,2]
[341023310,1730275843340,-4647.7951,0.00035516,2]
[341023312,1730275843349,-21455.8201,0.00035516,2]
[341023314,1730275843359,-486.0334,0.00035516,2]
[341023316,1730275843368,-1000.0,0.00035516,2]
[341023318,1730275843377,-1985.6357,0.00035516,2]
[341023320,1730275843387,-307.48890445,0.00035516,2]
[341023322,1730275843396,-294.795,0.00035553,42]
[341023324,1730275843405,-400.0,0.000356,12]
[341023326,1730275843415,-188.47661067,0.00035606,2]
[341023328,1730275843424,-502.25808875,0.00035616,5]
[341023330,1730275843435,-502.6421228,0.00035616,5]
[341023332,1730275843444,-500.0,0.00035616,5]
[341023334,1730275843453,-500.0,0.00035616,5]
[341023336,1730275843463,-500.0,0.00035616,5]
[341023338,1730275843472,-500.0,0.00035616,5]
[341023340,1730275843481,-500.0,0.00035616,5]
[341023342,1730275843490,-500.0,0.00035616,5]
[341023344,1730275843501,-500.0,0.00035616,5]
[341023346,1730275843510,-500.0,0.00035616,5]
[341023348,1730275843519,-500.0,0.00035616,5]
[341023350,1730275843529,-500.0,0.00035616,5]
[341023352,1730275843539,-500.0,0.00035616,5]
[341023354,1730275843549,-529.25429483,0.00035616,5]
[341023356,1730275843559,-500.0,0.00035616,5]
[341023358,1730275843570,-500.0,0.00035616,5]
[341023360,1730275843580,-500.0,0.00035616,5]
[341023362,1730275843590,-500.0,0.00035616,5]
[341023364,1730275843599,-500.0,0.00035616,5]
[341023366,1730275843609,-532.58191455,0.00035616,5]
[341023368,1730275843618,-500.0,0.00035616,5]
[341023370,1730275843627,-230.37633219,0.00035616,5]
[341023413,1730275846130,-279.95744406,0.00035616,5]
[341023414,1730275846139,-165.19535084,0.00035616,5]
[341023415,1730275846149,-500.0,0.00035616,5]
[341023416,1730275846158,-204.00623102,0.00035616,5]
[341023417,1730275846167,-500.0,0.00035616,5]
[341023418,1730275846176,-500.0,0.00035616,5]
[341023419,1730275846186,-500.0,0.00035616,5]
[341023420,1730275846195,-500.0,0.00035616,5]
[341023421,1730275846204,-500.0,0.00035616,5]
[341023422,1730275846213,-540.33754093,0.00035616,5]
[341023423,1730275846223,-500.0,0.00035616,5]
[341023424,1730275846231,-500.0,0.00035616,5]
[341023425,1730275846240,-500.0,0.00035616,5]
[341023426,1730275846250,-500.0,0.00035616,5]
[341023427,1730275846259,-500.0,0.00035616,5]
[341023428,1730275846268,-587.68033587,0.00035616,5]
[341023429,1730275846277,-500.0,0.00035616,5]
[341023430,1730275846286,-500.0,0.00035616,5]
[341023431,1730275846295,-531.03241836,0.00035616,5]
[341023432,1730275846304,-525.64639409,0.00035616,5]
[341023433,1730275846313,-500.0,0.00035616,5]
[341023434,1730275846322,-500.0,0.00035616,5]
[341023435,1730275846331,-500.0,0.00035616,5]
[341023436,1730275846341,-500.0,0.00035616,5]
[341023437,1730275846350,-500.0,0.00035616,5]
[341023438,1730275846359,-508.53322398,0.00035616,5]
[341023439,1730275846368,-500.0,0.00035616,5]
[341023440,1730275846377,-553.88165799,0.00035616,5]
[341023441,1730275846386,-500.0,0.00035616,5]
[341023442,1730275846395,-516.01607848,0.00035616,5]
[341023443,1730275846404,-500.0,0.00035616,5]
[341023444,1730275846413,-500.0,0.00035616,5]
[341023445,1730275846422,-500.0,0.00035616,5]
[341023446,1730275846431,-511.20571371,0.00035616,5]
[341023447,1730275846440,-500.0,0.00035616,5]
[341023448,1730275846449,-447.76999896,0.00035616,5]
[341023449,1730275846458,-500.0,0.00035616,5]
[341023450,1730275846467,-61.69363762,0.00035616,5]
[341023451,1730275861817,300.0,0.00019725,2]
[341023452,1730275862563,420.0,0.00021484,2]
[341023453,1730275863334,350.0,0.00023401,2]
[341023455,1730276222684,160.21,0.00015342,2]
[341023457,1730276558337,150.0,0.00021,2]
[341023458,1730276756603,2054.80614685,0.000159,2]
[341023459,1730276850106,-3001.55675653,0.00022,2]
[341023460,1730276873044,14034.73889343,0.00021,4]
[341023461,1730276885936,150.0,0.00017605,2]
[341023462,1730276909652,32399.94522883,0.0002,2]
[341023463,1730276909677,13397.91849142,0.0002,2]
[341023477,1730276961098,-746.135754,0.0002189,2]
[341023478,1730276961119,-86713.40965142,0.00022,2]
[341023479,1730276961140,-12819.13550552,0.000225,2]
[341023480,1730276961162,-200.0,0.00023,2]
[341023481,1730276961182,-33316.82403334,0.000232,2]
[341023482,1730276961203,-50022.44023953,0.00023922,2]
[341023483,1730276961225,-177.9,0.00026905,2]
[341023484,1730276961246,-2847.29453785,0.00027,7]
[341023485,1730276961267,-478.47924568,0.00027,2]
[341023486,1730276967129,-119.83075432,0.00027,2]
[341023487,1730276967152,-200.0,0.00028,120]
[341023488,1730276967174,-487.487472,0.000287,2]
[341023489,1730277002506,300.0,0.00019725,2]
[341023490,1730277003272,301.0,0.00021484,2]
[341023491,1730277009951,158.36,0.00015342,2]
[341023507,1730277032087,-360.512528,0.000287,2]
[341023508,1730277032097,-4504.98915868,0.00029899,2]
[341023509,1730277032107,-335.32397589,0.00029899,2]
[341023510,1730277032117,-188.0,0.00029999,2]
[341023511,1730277032127,-200.0,0.0003,120]
[341023512,1730277032136,-360.31225,0.0003,2]
[341023513,1730277032147,-180.156,0.0003,2]
[341023514,1730277032157,-3286.3,0.0003,20]
[341023515,1730277032167,-180.1565,0.0003,2]
[341023516,1730277032178,-3736.78279346,0.0003,2]
[341023517,1730277032188,-1173.66679397,0.0003,2]
[341023518,1730277032204,-552.67765659,0.0003,2]
[341023519,1730277032214,-1013.03832778,0.0003,2]
[341023520,1730277032224,-926.42,0.0003072,2]
[341023521,1730277032234,-152.0,0.000312,3]
[341023522,1730277032244,-500.0,0.00032,120]
[341023523,1730277032254,-360.31225,0.00032039,2]
[341023524,1730277032263,-121.05176563,0.00032984,2]
[341023533,1730277038164,-805.36823437,0.00032984,2]
[341023534,1730277038175,-210.75,0.00033537,2]
[341023535,1730277038184,-134.49176563,0.00033581,120]
[341023537,1730277038491,-40.67823437,0.00033581,120]
[341023538,1730277038501,-13760.03266663,0.00033631,2]
[341023547,1730277040143,-335.0,0.00033631,2]
[341023548,1730277040155,-1086.46671284,0.00033631,2]
[341023549,1730277040167,-1073.23,0.00033631,2]
[341023550,1730277040183,-2526.28053237,0.00033631,2]
[341023552,1730277043082,-259.6362532,0.00033631,2]
[341023553,1730277043276,-341.4738846,0.00033631,2]
[341023554,1730277043306,-2611.10939048,0.00033631,2]
[341023555,1730277043318,-1906.77055988,0.00033631,2]
[341023556,1730277043328,-250.0,0.00033674,120]
[341023557,1730277043339,-372.8,0.00033769,2]
[341023558,1730277043352,-250.0,0.00033803,2]
[341023559,1730277043363,-124.40164538,0.00033879,2]
[341023560,1730277043378,-55.75485462,0.00033879,2]
[341023561,1730277043389,-164.58,0.00033882,2]
[341023562,1730277043399,-250.0,0.00033973,2]
[341023563,1730277043409,-180.156,0.00033992,2]
[341023564,1730277043419,-500.0,0.00034,120]
[341023565,1730277043429,-800.0,0.00034234,2]
[341023566,1730277043439,-200.0,0.00034282,2]
[341023567,1730277043449,-289.94,0.00034338,2]
[341023568,1730277043458,-150.0,0.00034517,7]
[341023569,1730277043468,-152.0,0.0003465,4]
[341023570,1730277043478,-164.7,0.00034687,2]
[341023571,1730277043488,-326.26323767,0.000349,2]
[341023572,1730277043498,-1274.72939162,0.00034907,2]
[341023577,1730277044040,-3333.27060838,0.00034907,2]
[341023578,1730277044051,-326.26323762,0.00034915,2]
[341023579,1730277044061,-19.04737585,0.00034929,2]
[341023580,1730277044073,-307.21586177,0.00034929,2]
[341023581,1730277044082,-38.91087014,0.00034944,2]
[341023582,1730277046111,-287.35236748,0.00034944,2]
[341023583,1730277046122,-125.86639063,0.00034953,2]
[341023584,1730277046279,-396.92604589,0.00034953,2]
[341023585,1730277046291,-326.26323762,0.00034958,2]
[341023586,1730277046301,-326.26323762,0.00034973,2]
[341023587,1730277046311,-261.73496151,0.00034973,2]
[341023588,1730277046321,-5129.62376574,0.00034973,2]
[341023589,1730277046332,-39304.35751775,0.00034973,2]
[341023590,1730277046345,-1893.65635548,0.00034973,2]
[341023591,1730277046355,-5991.903,0.00034995,2]
[341023592,1730277046366,-156.799,0.00034995,2]
[341023593,1730277046375,-10214.49495522,0.00034995,2]
[341023594,1730277046387,-431.885,0.00034995,2]
[341023595,1730277046400,-1108.67404478,0.00034995,2]
[341023596,1730277046412,-625.744,0.00034995,2]
[341023597,1730277046422,-1086.0,0.00034995,2]
[341023598,1730277046432,-269.7090414,0.00034999,7]
[341023599,1730277046441,-629.32109661,0.00034999,7]
[341023600,1730277046451,-500.0,0.00035,120]
[341023601,1730277046460,-297.21497315,0.00035,2]
[341023602,1730277046470,-297.21497315,0.00035,2]
[341023603,1730277046485,-8320.57229408,0.00035,30]
[341023604,1730277046507,-250.10479714,0.00035,30]
[341023605,1730277046520,-5008.17589993,0.00035,30]
[341023606,1730277121503,300.0,0.00019725,2]
[341023608,1730277529292,151.28,0.00015342,2]
[341023610,1730277987016,152.26,0.000205,2]
[341023611,1730278050116,-151.28,0.00024031,2]
[341023612,1730278050137,-241.22,0.00026746,2]
[341023613,1730278050156,-290.001,0.000268,2]
[341023614,1730278050177,-299.0,0.000287,2]
[341023615,1730278050196,-5857.8714,0.000299,2]
[341023616,1730278050216,-229.9695813,0.0003,2]
[341023618,1730278109831,157.98,0.00015342,2]
[341023631,1730278232445,-156.3844187,0.0003,2]
[341023632,1730278232456,-386.354,0.0003,2]
[341023633,1730278232467,-860.4,0.0003125,2]
[341023634,1730278232476,-192.37,0.00031809,2]
[341023635,1730278232486,-151.28,0.0003272,2]
[341023636,1730278232495,-640.0,0.00033094,2]
[341023637,1730278232506,-168.6,0.0003315,2]
[341023638,1730278232515,-150.0,0.00033167,7]
[341023639,1730278232524,-186.4,0.00033256,2]
[341023640,1730278232534,-250.0,0.00033332,120]
[341023641,1730278232543,-150.99,0.00033332,2]
[341023642,1730278232553,-250.0,0.0003339,2]
[341023643,1730278232564,-23900.0,0.00033415,2]
[341023644,1730278232574,-860.4,0.00033514,2]
[341023645,1730278232583,-250.0,0.00033643,2]
[341023646,1730278232593,-164.7,0.00033731,2]
[341023647,1730278232602,-360.0,0.000339,2]
[341023648,1730278232612,-400.0,0.00034,12]
[341023649,1730278232622,-800.0,0.000341,12]
[341023651,1730278232631,-168.95,0.00034125,2]
[341023653,1730278232640,-1200.0,0.000342,12]
[341023655,1730278232650,-1600.0,0.000343,12]
[341023657,1730278232659,-725.0,0.00034303,2]
[341023659,1730278232669,-2100.0,0.000344,12]
[341023661,1730278232679,-400.0,0.000345,12]
[341023663,1730278232689,-150.0,0.000345,2]
[341023664,1730278232698,-395.32926581,0.00034563,2]
[341023666,1730278232708,-400.0,0.000346,12]
[341023668,1730278232721,-400.0,0.000347,12]
[341023670,1730278232731,-400.0,0.000348,12]
[341023671,1730278232740,-168.6,0.00034807,2]
[341023672,1730278232750,-792.09001277,0.00034879,2]
[341023673,1730278232759,-145454.62145449,0.0003488,2]
[341023674,1730278232768,-178.30494821,0.000349,2]
[341023675,1730278232777,-751.0,0.000349,12]
[341023676,1730278232787,-204.48373048,0.000349,7]
[341023677,1730278232796,-23940.5572545,0.00034973,2]
[341023678,1730278232805,-155.03789293,0.0003499,2]
[341023679,1730278232815,-283.13777284,0.0003499,2]
[341023680,1730278232824,-283.13777284,0.0003499,2]
[341023681,1730278232834,-283.13777284,0.0003499,2]
[341023682,1730278232843,-518.56969124,0.00034999,2]
[341023683,1730278232852,-6210.16401229,0.00034999,120]
[341023684,1730278232864,-463.48174679,0.00034999,120]
[341023685,1730278232879,-1140.86424092,0.00034999,120]
[341023686,1730278232889,-12935.62559903,0.00035,2]
[341023688,1730278232898,-2333.2153417,0.00035,2]
[341023704,1730278233063,-10602.41025733,0.00035,2]
[341023706,1730278233073,-12935.62559903,0.00035,2]
[341023708,1730278233083,-12935.62559903,0.00035,2]
[341023710,1730278233093,-300.0,0.00035,30]
[341023712,1730278233103,-194.50566707,0.00035,2]
[341023714,1730278233113,-194.50566707,0.00035,2]
[341023716,1730278233122,-3807.86719656,0.00035,6]
[341023718,1730278233132,-5452.39534497,0.00035,3]
[341023720,1730278233141,-216040.13688014,0.00035,30]
[341023722,1730278233154,-196283.24188344,0.00035,30]
[341024073,1730278238446,-253.7732008,0.000348,15]
[341024074,1730278238472,-987.1094841,0.000348,15]
[341024075,1730278238481,-155.22810208,0.000349,2]
[341024076,1730278238491,-9191.42754602,0.00035,30]
[341024077,1730278238529,-17381.48089212,0.00035,30]
[341024089,1730278238848,-785.48244218,0.00035,30]
[341024091,1730278238859,-5852.19527977,0.00035,30]
[341024224,1730278240238,-365.177,0.00035,30]
[341024248,1730278240458,-576.90763634,0.00035,30]
[341024257,1730278240543,-32351.37974279,0.00035,30]
[341024266,1730278240622,-4914.07889441,0.00035,30]
[341024273,1730278240678,-385.95551922,0.00035,30]
[341024494,1730278243239,-1240.88268485,0.00034819,15]
[341024495,1730278243249,-35008.42570614,0.00035,30]
[341024496,1730278243348,-2655.97467773,0.00035,30]
[341024497,1730278243403,-3665.96600937,0.00035,30]
[341024498,1730278243442,-16.48535884,0.00035,30]
[341024554,1730278261345,300.0,0.00019725,2]
[341024556,1730278441354,217.0,0.00019725,2]
[341024564,1730279126133,391.0,0.0002,30]
[341024565,1730279166780,550.0,0.00015,2]
[341024566,1730279167859,600.0,0.00017,2]
[341024567,1730279168936,650.0,0.00019,2]
[341024568,1730279170016,700.0,0.00021,2]
[341024570,1730279243965,160.21,0.00015342,2]
[341024571,1730279361103,-750.0,0.00023,2]
[341024572,1730279361124,-800.0,0.00025,2]
[341024573,1730279361146,-850.0,0.00027,2]
[341024574,1730279368165,-991.27,0.00031679,2]
[341024580,1730279431480,-152.0,0.000335,3]
[341024581,1730279431489,-155.8334,0.00033523,2]
[341024582,1730279431571,-94.1666,0.00033523,2]
[341024583,1730279431580,-3538.59896883,0.00033605,2]
[341024584,1730279435004,-1532.300026,0.00033605,2]
[341024585,1730279435060,-2145.10100517,0.00033605,2]
[341024586,1730279435070,-168.6,0.00033613,2]
[341024587,1730279435079,-186.4,0.0003365,2]
[341024588,1730279435088,-150.0,0.00033666,7]
[341024589,1730279435097,-250.0,0.00033673,2]
[341024590,1730279435107,-257.55,0.00033673,2]
[341024591,1730279435118,-512.0,0.00033809,2]